fUST/lending_fUST_20250810
["ID","MTS","AMOUNT","RATE_DAILY","PERIOD"]
[378337144,1754831446342,-460.0,0.00020545,2]
[378337145,1754831446351,-460.0,0.00020545,2]
[378337146,1754831446360,-460.0,0.00020545,2]
[378337147,1754831446370,-460.0,0.00020545,2]
[378337148,1754831446379,-460.0,0.00020545,2]
[378337149,1754831446388,-460.0,0.00020545,2]
[378337150,1754831446397,-460.0,0.00020545,2]
[378337151,1754831446406,-460.0,0.00020545,2]
[378337152,1754831446416,-460.0,0.00020545,2]
[378337153,1754831446428,-460.0,0.00020545,2]
[378337154,1754831446438,-460.0,0.00020545,2]
[378337155,1754831446448,-1166.38,0.00020545,2]
[378337156,1754831446457,-460.0,0.00020546,2]
[378337157,1754831446467,-460.0,0.00020546,2]
[378337158,1754831446476,-460.0,0.00020546,2]
[378337159,1754831446486,-460.0,0.00020546,2]
[378337160,1754831446495,-479.62,0.00020546,2]
[378337161,1754831446504,-289.31681853,0.00020546,2]
[378337162,1754831446515,-151.0,0.00020546,2]
[378337163,1754831446524,-151.0,0.00020546,2]
[378337164,1754831446533,-460.0,0.00020546,2]
[378337165,1754831446543,-589.1,0.00020546,2]
[378337166,1754831446552,-460.0,0.00020546,2]
[378337167,1754831446562,-460.0,0.00020546,2]
[378337168,1754831446571,-460.0,0.00020546,2]
[378337169,1754831446581,-870.7,0.00020546,2]
[378337170,1754831446592,-460.0,0.00020546,2]
[378337171,1754831446601,-903.0,0.00020546,2]
[378337172,1754831446610,-151.0,0.00020546,2]
[378337174,1754831446621,-151.0,0.00020546,2]
[378337175,1754831446630,-151.0,0.00020546,2]
[378337178,1754831446733,-532.36608651,0.00020546,2]
[378337179,1754831446743,-460.0,0.00020546,2]
[378337180,1754831446754,-460.0,0.00020546,2]
[378337181,1754831446763,-460.0,0.00020546,2]
[378337182,1754831446773,-460.0,0.00020546,2]
[378337183,1754831446782,-3431.58,0.00020546,2]
[378337184,1754831446791,-704.59,0.00020546,2]
[378337185,1754831446801,-1262.61,0.00020546,2]
[378337186,1754831446811,-982.9,0.00020546,2]
[378337187,1754831446821,-1207.5,0.00020546,2]
[378337188,1754831446831,-152.57260816,0.00020546,2]
[378337189,1754831446840,-198.0,0.00020546,2]
[378337190,1754831446850,-151.0,0.00020546,2]
[378337191,1754831446859,-151.0,0.00020546,2]
[378337192,1754831446868,-158.92748895,0.00020546,2]
[378337193,1754831446878,-942.57,0.00020546,2]
[378337194,1754831446887,-486.40112897,0.00020546,2]
[378337195,1754831446896,-1164.74,0.00020546,2]
[378337196,1754831446905,-890.83,0.00020546,2]
[378337197,1754831446914,-460.0,0.00020546,2]
[378337198,1754831446923,-1107.82,0.00020546,2]
[378337199,1754831446935,-500.0,0.00020573,2]
[378337200,1754831446944,-500.0,0.00020573,2]
[378337201,1754831446953,-500.0,0.00020573,2]
[378337202,1754831446962,-3607.90105162,0.00020711,2]
[378337203,1754831446971,-460.0,0.00020717,2]
[378337204,1754831446981,-455.60707001,0.00020717,2]
[378337205,1754831446990,-460.0,0.00020717,2]
[378337206,1754831446999,-478.80788414,0.00020717,2]
[378337207,1754831447009,-460.0,0.00020717,2]
[378337208,1754831447019,-499.38,0.00020811,2]
[378337209,1754831447028,-968.51,0.00020818,2]
[378337210,1754831447037,-460.0,0.00020819,2]
[378337211,1754831447047,-466.24389947,0.00020819,2]
[378337212,1754831447056,-460.0,0.00020819,2]
[378337213,1754831447065,-464.92002599,0.00020819,2]
[378337214,1754831447075,-460.0,0.00020819,2]
[378337215,1754831447084,-166.12238018,0.00020819,2]
[378337216,1754831447094,-460.0,0.00020819,2]
[378337217,1754831447103,-460.0,0.00020819,2]
[378337218,1754831447112,-460.0,0.00020819,2]
[378337219,1754831447121,-460.0,0.00020819,2]
[378337220,1754831447130,-460.0,0.00020819,2]
[378337221,1754831447139,-460.0,0.00020819,2]
[378337222,1754831447148,-460.0,0.00020819,2]
[378337223,1754831447157,-460.0,0.00020819,2]
[378337224,1754831447167,-460.0,0.00020819,2]
[378337225,1754831447176,-460.0,0.00020819,2]
[378337226,1754831447185,-460.0,0.00020819,2]
[378337227,1754831447195,-460.0,0.00020819,2]
[378337228,1754831447204,-2333.16,0.00020819,2]
[378337229,1754831447214,-688.53,0.00020819,2]
[378337230,1754831447223,-460.0,0.00020819,2]
[378337231,1754831447233,-460.0,0.00020819,2]
[378337232,1754831447242,-1478.91,0.00020819,2]
[378337233,1754831447252,-460.0,0.00020819,2]
[378337234,1754831447262,-480.76,0.00020819,2]
[378337235,1754831447272,-460.0,0.00020819,2]
[378337236,1754831447282,-1486.19,0.00020819,2]
[378337237,1754831447292,-460.0,0.00020819,2]
[378337238,1754831447301,-460.0,0.00020819,2]
[378337239,1754831447312,-460.0,0.00020819,2]
[378337240,1754831447322,-460.0,0.00020819,2]
[378337241,1754831447331,-469.98061479,0.00020819,2]
[378337242,1754831447342,-460.0,0.00020819,2]
[378337243,1754831447351,-460.0,0.00020819,2]
[378337244,1754831447360,-1475.74,0.00020819,2]
[378337245,1754831447370,-460.0,0.00020819,2]
[378337246,1754831447379,-460.0,0.00020819,2]
[378337247,1754831447389,-460.0,0.00020819,2]
[378337248,1754831447400,-460.0,0.00020819,2]
[378337249,1754831447410,-460.0,0.00020819,2]
[378337250,1754831447422,-460.0,0.00020819,2]
[378337251,1754831447434,-460.0,0.00020819,2]
[378337252,1754831447444,-638.15,0.00020819,2]
[378337253,1754831447455,-271.79048291,0.00020819,2]
[378337254,1754831447466,-460.0,0.00020819,2]
[378337255,1754831447475,-460.0,0.00020819,2]
[378337256,1754831447485,-460.0,0.00020819,2]
[378337257,1754831447495,-460.0,0.00020819,2]
[378337258,1754831447507,-460.0,0.00020819,2]
[378337259,1754831447517,-460.0,0.00020819,2]
[378337260,1754831447526,-460.0,0.00020819,2]
[378337261,1754831447535,-460.0,0.00020819,2]
[378337262,1754831447544,-460.0,0.00020819,2]
[378337263,1754831447554,-198.0,0.0002082,2]
[378337264,1754831447563,-297.66112232,0.0002082,2]
[378337265,1754831447573,-151.0,0.0002082,2]
[378337266,1754831447582,-151.0,0.0002082,2]
[378337267,1754831447592,-151.0,0.0002082,2]
[378337268,1754831447602,-151.0,0.0002082,2]
[378337269,1754831447611,-151.0,0.0002082,2]
[378337270,1754831447622,-460.0,0.0002082,2]
[378337271,1754831447632,-460.0,0.0002082,2]
[378337272,1754831447641,-460.0,0.0002082,2]
[378337273,1754831447650,-479.62,0.0002082,2]
[378337274,1754831447661,-460.0,0.0002082,2]
[378337275,1754831447671,-589.1,0.0002082,2]
[378337276,1754831447682,-187.0211501,0.0002082,2]
[378337277,1754831447692,-870.7,0.0002082,2]
[378337278,1754831447701,-576.13284082,0.0002082,2]
[378337279,1754831447711,-903.0,0.0002082,2]
[378337280,1754831447720,-460.0,0.0002082,2]
[378337281,1754831447729,-394.24133916,0.0002082,2]
[378337282,1754831447739,-460.0,0.0002082,2]
[378337283,1754831447748,-3431.58,0.0002082,2]
[378337284,1754831447758,-704.59,0.0002082,2]
[378337285,1754831447767,-1262.61,0.0002082,2]
[378337286,1754831447776,-982.9,0.0002082,2]
[378337287,1754831447785,-1207.5,0.0002082,2]
[378337288,1754831447794,-942.57,0.0002082,2]
[378337289,1754831447804,-1164.74,0.0002082,2]
[378337290,1754831447814,-890.83,0.0002082,2]
[378337291,1754831447823,-540.34047343,0.0002082,2]
[378337292,1754831447833,-1107.82,0.0002082,2]
[378337293,1754831447843,-1000.0,0.00020821,2]
[378337294,1754831447853,-500.0,0.00020821,2]
[378337295,1754831447863,-500.0,0.00020821,2]
[378337296,1754831447872,-503.95864138,0.00020821,2]
[378337297,1754831447882,-500.0,0.00020821,2]
[378337298,1754831447892,-500.0,0.00020821,2]
[378337299,1754831447903,-500.0,0.00020821,2]
[378337300,1754831447914,-364.43862818,0.00020821,2]
[378337301,1754831447923,-1000.0,0.00020821,2]
[378337302,1754831447933,-504.67711167,0.00020821,2]
[378337303,1754831447942,-505.81468852,0.00020821,2]
[378337304,1754831447951,-500.0,0.00020878,2]
[378337305,1754831447961,-336.0,0.00020902,2]
[378337306,1754831447970,-500.0,0.00020973,2]
[378337307,1754831447981,-500.0,0.00020973,2]
[378337308,1754831447991,-500.0,0.00020973,2]
[378337309,1754831448001,-501.08373236,0.00020973,2]
[378337310,1754831448010,-500.0,0.00020973,2]
[378337311,1754831448020,-232.857601,0.00020975,2]
[378337312,1754831448030,-160.0,0.00020985,2]
[378337313,1754831448039,-200.0,0.00020988,15]
[378337314,1754831448048,-300.0,0.00020988,15]
[378337315,1754831448057,-968.51,0.0002099,2]
[378337316,1754831448066,-460.0,0.00020991,2]
[378337317,1754831448075,-511.07307693,0.00020991,2]
[378337318,1754831448085,-383.19,0.00021003,2]
[378337319,1754831448094,-499.38,0.00021085,2]
[378337320,1754831448103,-460.0,0.00021093,2]
[378337321,1754831448112,-460.0,0.00021093,2]
[378337322,1754831448122,-460.0,0.00021093,2]
[378337323,1754831448131,-460.0,0.00021093,2]
[378337324,1754831448140,-460.0,0.00021093,2]
[378337325,1754831448149,-460.0,0.00021093,2]
[378337326,1754831448159,-460.0,0.00021093,2]
[378337327,1754831448168,-460.0,0.00021093,2]
[378337328,1754831448178,-460.0,0.00021093,2]
[378337329,1754831448187,-460.0,0.00021093,2]
[378337330,1754831448196,-460.0,0.00021093,2]
[378337331,1754831448206,-324.6080796,0.00021093,2]
[378337332,1754831448215,-460.0,0.00021093,2]
[378337333,1754831448224,-2333.16,0.00021093,2]
[378337334,1754831448234,-688.53,0.00021093,2]
[378337335,1754831448243,-460.0,0.00021093,2]
[378337336,1754831448252,-460.0,0.00021093,2]
[378337337,1754831448262,-1478.91,0.00021093,2]
[378337338,1754831448271,-460.0,0.00021093,2]
[378337339,1754831448281,-460.0,0.00021093,2]
[378337340,1754831448290,-1486.19,0.00021093,2]
[378337341,1754831448300,-460.0,0.00021093,2]
[378337342,1754831448310,-460.0,0.00021093,2]
[378337343,1754831448319,-460.0,0.00021093,2]
[378337344,1754831448329,-460.0,0.00021093,2]
[378337345,1754831448338,-152.53425571,0.00021093,2]
[378337346,1754831448348,-460.0,0.00021093,2]
[378337347,1754831448358,-1475.74,0.00021093,2]
[378337348,1754831448368,-460.0,0.00021093,2]
[378337349,1754831448378,-460.0,0.00021093,2]
[378337350,1754831448387,-460.0,0.00021093,2]
[378337351,1754831448397,-460.0,0.00021093,2]
[378337352,1754831448407,-638.15,0.00021093,2]
[378337353,1754831448416,-460.0,0.00021093,2]
[378337354,1754831448428,-440.02761962,0.00021093,2]
[378337355,1754831448438,-460.0,0.00021093,2]
[378337356,1754831448447,-566.7,0.00021093,2]
[378337357,1754831448457,-460.0,0.00021093,2]
[378337358,1754831448467,-460.0,0.00021093,2]
[378337359,1754831448476,-460.0,0.00021093,2]
[378337360,1754831448485,-460.0,0.00021093,2]
[378337361,1754831448495,-151.0,0.00021094,2]
[378337362,1754831448504,-151.0,0.00021094,2]
[378337363,1754831448513,-151.0,0.00021094,2]
[378337364,1754831448523,-151.0,0.00021094,2]
[378337365,1754831448532,-460.0,0.00021094,2]
[378337366,1754831448542,-518.80808984,0.00021094,2]
[378337367,1754831448551,-479.62,0.00021094,2]
[378337368,1754831448560,-460.0,0.00021094,2]
[378337369,1754831448569,-589.1,0.00021094,2]
[378337370,1754831448579,-870.7,0.00021094,2]
[378337371,1754831448588,-903.0,0.00021094,2]
[378337372,1754831448598,-270.76,0.00021094,2]
[378337373,1754831448607,-460.0,0.00021094,2]
[378337374,1754831448616,-3431.58,0.00021094,2]
[378337375,1754831448626,-704.59,0.00021094,2]
[378337376,1754831448635,-1262.61,0.00021094,2]
[378337377,1754831448645,-982.9,0.00021094,2]
[378337378,1754831448654,-1207.5,0.00021094,2]
[378337379,1754831448663,-942.57,0.00021094,2]
[378337380,1754831448673,-968.51,0.00021094,2]
[378337381,1754831448682,-1164.74,0.00021094,2]
[378337382,1754831448691,-890.83,0.00021094,2]
[378337383,1754831448701,-1107.82,0.00021094,2]
[378337384,1754831448711,-1000.0,0.00021121,2]
[378337385,1754831448721,-1000.0,0.00021121,2]
[378337386,1754831448731,-1000.0,0.00021121,2]
[378337387,1754831448741,-460.0,0.00021265,2]
[378337388,1754831448750,-3607.90105162,0.00021353,2]
[378337389,1754831448760,-3795.16,0.00021358,3]
[378337390,1754831448770,-1897.58,0.00021358,3]
[378337391,1754831448779,-790.66,0.00021358,3]
[378337392,1754831448789,-395.32,0.00021358,3]
[378337393,1754831448798,-160.0,0.00021358,3]
[378337394,1754831448807,-499.38,0.00021359,2]
[378337395,1754831448817,-460.0,0.00021367,2]
[378337396,1754831448826,-460.0,0.00021367,2]
[378337397,1754831448836,-460.0,0.00021367,2]
[378337398,1754831448848,-460.0,0.00021367,2]
[378337399,1754831448858,-460.0,0.00021367,2]
[378337400,1754831448867,-460.0,0.00021367,2]
[378337401,1754831448877,-460.0,0.00021367,2]
[378337402,1754831448886,-460.0,0.00021367,2]
[378337403,1754831448896,-460.0,0.00021367,2]
[378337404,1754831448906,-460.0,0.00021367,2]
[378337405,1754831448915,-2333.16,0.00021367,2]
[378337406,1754831448925,-688.53,0.00021367,2]
[378337407,1754831448933,-460.0,0.00021367,2]
[378337408,1754831449035,-460.0,0.00021367,2]
[378337409,1754831449044,-1478.91,0.00021367,2]
[378337410,1754831449054,-460.0,0.00021367,2]
[378337411,1754831449063,-244.19,0.00021367,2]
[378337412,1754831449073,-1486.19,0.00021367,2]
[378337413,1754831449082,-460.0,0.00021367,2]
[378337414,1754831449091,-460.0,0.00021367,2]
[378337415,1754831449100,-460.0,0.00021367,2]
[378337416,1754831449110,-460.0,0.00021367,2]
[378337417,1754831449120,-1475.74,0.00021367,2]
[378337418,1754831449129,-433.01,0.00021367,2]
[378337419,1754831449139,-460.0,0.00021367,2]
[378337420,1754831449149,-460.0,0.00021367,2]
[378337421,1754831449158,-460.0,0.00021367,2]
[378337422,1754831449167,-968.51,0.00021367,2]
[378337423,1754831449176,-638.15,0.00021367,2]
[378337424,1754831449186,-460.0,0.00021367,2]
[378337425,1754831449196,-460.0,0.00021367,2]
[378337426,1754831449205,-460.0,0.00021367,2]
[378337427,1754831449214,-460.0,0.00021367,2]
[378337428,1754831449224,-460.0,0.00021367,2]
[378337429,1754831449234,-575.15716718,0.00021367,2]
[378337430,1754831449243,-151.0,0.00021368,2]
[378337431,1754831449252,-197.21108823,0.00021368,2]
[378337432,1754831449262,-301.40643601,0.00021368,2]
[378337433,1754831449271,-245.0,0.00021368,2]
[378337434,1754831449280,-460.0,0.00021368,2]
[378337435,1754831449289,-479.62,0.00021368,2]
[378337436,1754831449299,-589.1,0.00021368,2]
[378337437,1754831449309,-870.7,0.00021368,2]
[378337438,1754831449318,-903.0,0.00021368,2]
[378337439,1754831449327,-460.0,0.00021368,2]
[378337440,1754831449337,-3431.58,0.00021368,2]
[378337441,1754831449347,-704.59,0.00021368,2]
[378337442,1754831449357,-1262.61,0.00021368,2]
[378337443,1754831449367,-982.9,0.00021368,2]
[378337444,1754831449376,-1207.5,0.00021368,2]
[378337445,1754831449385,-942.57,0.00021368,2]
[378337446,1754831449395,-1164.74,0.00021368,2]
[378337447,1754831449404,-890.83,0.00021368,2]
[378337448,1754831449418,-1107.82,0.00021368,2]
[378337449,1754831449429,-1262.02866263,0.00021368,2]
[378337450,1754831449439,-510.52063625,0.00021426,2]
[378337451,1754831449450,-528.95677806,0.00021521,2]
[378337452,1754831449460,-1000.0,0.00021521,2]
[378337453,1754831449472,-1000.0,0.00021521,2]
[378337454,1754831449483,-5560.38,0.00021528,3]
[378337455,1754831449493,-260.0,0.00021533,2]
[378337456,1754831449503,-460.0,0.00021539,2]
[378337457,1754831449512,-499.38,0.00021633,2]
[378337458,1754831449522,-460.0,0.00021641,2]
[378337459,1754831449531,-460.0,0.00021641,2]
[378337460,1754831449540,-460.0,0.00021641,2]
[378337461,1754831449550,-460.0,0.00021641,2]
[378337462,1754831449559,-326.52542039,0.00021641,2]
[378337463,1754831449569,-460.0,0.00021641,2]
[378337464,1754831449579,-460.0,0.00021641,2]
[378337465,1754831449588,-556.19,0.00021641,2]
[378337466,1754831449598,-460.0,0.00021641,2]
[378337467,1754831449607,-2333.16,0.00021641,2]
[378337468,1754831449616,-688.53,0.00021641,2]
[378337469,1754831449625,-460.0,0.00021641,2]
[378337470,1754831449635,-1478.91,0.00021641,2]
[378337471,1754831449644,-460.0,0.00021641,2]
[378337472,1754831449653,-1486.19,0.00021641,2]
[378337473,1754831449663,-460.0,0.00021641,2]
[378337474,1754831449672,-460.0,0.00021641,2]
[378337475,1754831449681,-460.0,0.00021641,2]
[378337476,1754831449691,-460.0,0.00021641,2]
[378337477,1754831449700,-1475.74,0.00021641,2]
[378337478,1754831449709,-460.0,0.00021641,2]
[378337479,1754831449719,-460.0,0.00021641,2]
[378337480,1754831449729,-460.0,0.00021641,2]
[378337481,1754831449739,-968.51,0.00021641,2]
[378337482,1754831449748,-638.15,0.00021641,2]
[378337483,1754831449757,-460.0,0.00021641,2]
[378337484,1754831449767,-460.0,0.00021641,2]
[378337485,1754831449776,-460.0,0.00021641,2]
[378337486,1754831449786,-460.0,0.00021641,2]
[378337487,1754831449795,-198.0,0.00021642,2]
[378337488,1754831449804,-460.0,0.00021642,2]
[378337489,1754831449814,-479.62,0.00021642,2]
[378337490,1754831449824,-589.1,0.00021642,2]
[378337491,1754831449833,-870.7,0.00021642,2]
[378337492,1754831449843,-903.0,0.00021642,2]
[378337493,1754831449852,-460.0,0.00021642,2]
[378337494,1754831449861,-3431.58,0.00021642,2]
[378337495,1754831449871,-704.59,0.00021642,2]
[378337496,1754831449880,-1262.61,0.00021642,2]
[378337497,1754831449889,-982.9,0.00021642,2]
[378337498,1754831449899,-1207.5,0.00021642,2]
[378337499,1754831449908,-942.57,0.00021642,2]
[378337500,1754831449918,-1164.74,0.00021642,2]
[378337501,1754831449928,-890.83,0.00021642,2]
[378337502,1754831449937,-1107.82,0.00021642,2]
[378337503,1754831449947,-151.0,0.00021645,2]
[378337504,1754831449956,-500.0,0.00021645,2]
[378337505,1754831449965,-151.0,0.00021645,2]
[378337506,1754831449974,-151.0,0.00021645,2]
[378337507,1754831449983,-151.0,0.00021645,2]
[378337508,1754831449992,-500.0,0.00021645,2]
[378337509,1754831450002,-151.0,0.00021645,2]
[378337510,1754831450011,-151.0,0.00021645,2]
[378337511,1754831450020,-151.0,0.00021645,2]
[378337512,1754831450029,-151.0,0.00021645,2]
[378337513,1754831450039,-151.0,0.00021645,2]
[378337514,1754831450047,-500.0,0.00021645,2]
[378337515,1754831450056,-151.0,0.00021645,2]
[378337516,1754831450065,-151.0,0.00021645,2]
[378337517,1754831450075,-151.0,0.00021645,2]
[378337518,1754831450084,-151.0,0.00021645,2]
[378337519,1754831450093,-151.0,0.00021645,2]
[378337520,1754831450103,-500.0,0.00021645,2]
[378337521,1754831450112,-151.0,0.00021645,2]
[378337522,1754831450122,-151.0,0.00021645,2]
[378337523,1754831450132,-500.0,0.00021645,2]
[378337524,1754831450142,-151.0,0.00021645,2]
[378337525,1754831450151,-151.0,0.00021645,2]
[378337526,1754831450161,-151.0,0.00021645,2]
[378337527,1754831450170,-500.0,0.00021645,2]
[378337528,1754831450180,-151.0,0.00021645,2]
[378337529,1754831450189,-151.0,0.00021645,2]
[378337530,1754831450199,-151.0,0.00021645,2]
[378337531,1754831450209,-500.0,0.00021645,2]
[378337532,1754831450221,-151.0,0.00021645,2]
[378337533,1754831450230,-151.0,0.00021645,2]
[378337534,1754831450240,-500.0,0.00021645,2]
[378337535,1754831450251,-151.0,0.00021645,2]
[378337536,1754831450261,-151.0,0.00021645,2]
[378337537,1754831450271,-151.0,0.00021645,2]
[378337538,1754831450280,-500.0,0.00021645,2]
[378337539,1754831450289,-151.0,0.00021645,2]
[378337540,1754831450299,-500.0,0.00021645,2]
[378337541,1754831450308,-151.0,0.00021645,2]
[378337542,1754831450317,-151.0,0.00021645,2]
[378337543,1754831450326,-151.0,0.00021645,2]
[378337544,1754831450335,-151.0,0.00021645,2]
[378337545,1754831450344,-500.0,0.00021645,2]
[378337546,1754831450353,-256.01205118,0.00021645,2]
[378337547,1754831450363,-151.0,0.00021645,2]
[378337548,1754831450373,-2183.31810187,0.00021645,2]
[378337549,1754831450382,-500.0,0.00021645,2]
[378337550,1754831450392,-151.0,0.00021645,2]
[378337551,1754831450401,-151.0,0.00021645,2]
[378337552,1754831450410,-151.0,0.00021645,2]
[378337553,1754831450419,-151.0,0.00021645,2]
[378337554,1754831450432,-500.0,0.00021645,2]
[378337555,1754831450441,-151.0,0.00021645,2]
[378337556,1754831450450,-151.0,0.00021645,2]
[378337557,1754831450460,-500.0,0.00021645,2]
[378337558,1754831450469,-151.0,0.00021645,2]
[378337559,1754831450478,-151.0,0.00021645,2]
[378337560,1754831450487,-151.0,0.00021645,2]
[378337561,1754831450496,-500.0,0.00021645,2]
[378337562,1754831450505,-151.0,0.00021645,2]
[378337563,1754831450515,-18502.69577858,0.00021645,2]
[378337564,1754831450524,-151.0,0.00021645,2]
[378337565,1754831450534,-500.0,0.00021645,2]
[378337566,1754831450543,-151.0,0.00021645,2]
[378337567,1754831450553,-151.0,0.00021645,2]
[378337568,1754831450562,-151.0,0.00021645,2]
[378337569,1754831450572,-151.0,0.00021645,2]
[378337570,1754831450581,-151.0,0.00021645,2]
[378337571,1754831450591,-151.0,0.00021645,2]
[378337572,1754831450599,-151.0,0.00021645,2]
[378337573,1754831450609,-151.0,0.00021645,2]
[378337574,1754831450619,-151.0,0.00021645,2]
[378337575,1754831450628,-151.0,0.00021645,2]
[378337576,1754831450639,-151.0,0.00021645,2]
[378337577,1754831450648,-233.80049677,0.00021645,2]
[378337578,1754831450658,-151.0,0.00021645,2]
[378337579,1754831450669,-250.0,0.00021645,2]
[378337580,1754831450678,-151.0,0.00021645,2]
[378337581,1754831450687,-151.0,0.00021645,2]
[378337582,1754831450697,-250.0,0.00021645,2]
[378337583,1754831450707,-151.0,0.00021645,2]
[378337584,1754831450718,-151.0,0.00021645,2]
[378337585,1754831450727,-250.0,0.00021645,2]
[378337586,1754831450737,-151.0,0.00021645,2]
[378337587,1754831450746,-151.0,0.00021645,2]
[378337588,1754831450756,-250.0,0.00021645,2]
[378337589,1754831450766,-151.0,0.00021645,2]
[378337590,1754831450775,-151.0,0.00021645,2]
[378337591,1754831450784,-151.0,0.00021645,2]
[378337592,1754831450793,-151.0,0.00021645,2]
[378337593,1754831450803,-250.0,0.00021645,2]
[378337594,1754831450812,-250.0,0.00021645,2]
[378337595,1754831450821,-151.0,0.00021645,2]
[378337596,1754831450830,-250.0,0.00021645,2]
[378337597,1754831450839,-151.0,0.00021645,2]
[378337598,1754831450849,-151.0,0.00021645,2]
[378337599,1754831450858,-250.0,0.00021645,2]
[378337600,1754831450867,-151.0,0.00021645,2]
[378337601,1754831450877,-151.0,0.00021645,2]
[378337602,1754831450886,-250.0,0.00021645,2]
[378337603,1754831450895,-151.0,0.00021645,2]
[378337604,1754831450905,-151.0,0.00021645,2]
[378337605,1754831450914,-250.0,0.00021645,2]
[378337606,1754831450923,-196.83053362,0.00021645,2]
[378337607,1754831450933,-151.0,0.00021645,2]
[378337608,1754831450942,-250.0,0.00021645,2]
[378337609,1754831450951,-151.0,0.00021645,2]
[378337610,1754831450961,-5404.75069081,0.00021655,2]
[378337611,1754831450970,-500.0,0.00021668,2]
[378337612,1754831450979,-1500.0,0.00021668,2]
[378337613,1754831450988,-1500.0,0.00021668,2]
[378337614,1754831450997,-258.4,0.00021673,2]
[378337615,1754831451007,-572.75123812,0.00021673,2]
[378337616,1754831451016,-500.11678784,0.00021673,2]
[378337617,1754831451025,-424.03539343,0.00021673,2]
[378337618,1754831451034,-500.0,0.00021673,2]
[378337619,1754831451163,-500.0,0.00021673,2]
[378337620,1754831451175,-2264.10087164,0.000217,2]
[378337621,1754831451185,-160.0,0.00021739,2]
[378337622,1754831451194,-12668.57659669,0.00021739,2]
[378337623,1754831451204,-312.16666667,0.00021739,2]
[378337624,1754831451213,-215.44987349,0.00021739,2]
[378337625,1754831451223,-461.62346162,0.00021739,2]
[378337626,1754831451232,-160.0,0.00021739,2]
[378337627,1754831451241,-216.64838636,0.00021739,2]
[378337628,1754831451251,-231.96268195,0.00021739,2]
[378337629,1754831451260,-160.0,0.00021739,2]
[378337630,1754831451270,-160.0,0.00021739,2]
[378337631,1754831451279,-843.0869304,0.00021739,2]
[378337632,1754831451289,-527.86640923,0.00021739,2]
[378337633,1754831451299,-2347.87260389,0.00021755,2]
[378337634,1754831451309,-160.0,0.00021767,2]
[378337635,1754831451318,-160.0,0.00021767,2]
[378337636,1754831451328,-160.0,0.00021767,2]
[378337637,1754831451337,-160.0,0.00021767,2]
[378337638,1754831451347,-160.0,0.00021767,2]
[378337639,1754831451356,-968.51,0.00021768,2]
[378337640,1754831451365,-2183.31810187,0.0002181,2]
[378337641,1754831451375,-460.0,0.00021813,2]
[378337642,1754831451384,-1680.0,0.00021868,2]
[378337643,1754831451393,-312.16666667,0.00021907,3]
[378337644,1754831451402,-461.62346162,0.00021907,3]
[378337645,1754831451411,-12668.57659669,0.00021907,3]
[378337646,1754831451421,-527.86640923,0.00021907,3]